bitfinex-derivatives/quotes_SOLF0:USTF0_20230105
["timestamp","ask_amount","ask_price","bid_price","bid_amount"]
[1672927223349,10.0,13.097,13.085,25.13]
[1672927223549,43.1366,13.098,13.087,15.27]
[1672927223759,15.27,13.099,13.087,15.27]
[1672927223969,15.27,13.1,13.088,25.13]
[1672927224179,15.27,13.1,13.089,10.07030909]
[1672927226397,15.27,13.104,13.092,65.27]
[1672927226606,10.0,13.105,13.094,10.0]
[1672927226816,10.0,13.105,13.095,0.0711527]
[1672927227027,15.27,13.106,13.095,0.0711527]
[1672927227239,25.24,13.107,13.096,10.0]
[1672927228502,15.24,13.107,13.096,10.0]
[1672927228918,15.2,13.104,13.095,0.0711527]
[1672927229129,15.24,13.102,13.095,0.0711527]
[1672927229340,10.0,13.101,13.095,0.0711527]
[1672927229658,15.27,13.104,13.095,0.0711527]
[1672927229872,25.24,13.106,13.095,0.0711527]
[1672927230599,15.24,13.106,13.095,0.0711527]
[1672927231548,87.2957,13.108,13.095,0.0711527]
[1672927231758,10.0,13.106,13.096,10.0]
[1672927231970,45.41,13.108,13.096,10.0]
[1672927232384,45.34,13.11,13.096,55.26]
[1672927232596,10.0,13.109,13.098,0.06602159]
[1672927232806,9.81847167,13.109,13.098,45.76602159]
[1672927233127,55.6,13.111,13.099,10.0]
[1672927233333,10.0,13.11,13.099,10.0]
[1672927234383,55.6,13.111,13.099,10.0]
[1672927234910,55.35,13.11,13.099,10.0]
[1672927235115,55.35,13.11,13.1,0.06317591]
[1672927235331,10.0,13.109,13.1,0.06317591]
[1672927236489,45.7,13.111,13.1,0.06317591]
[1672927237010,43.6165,13.112,13.1,45.76317591]
[1672927237216,45.41,13.111,13.1,0.06317591]
[1672927237424,45.34,13.109,13.1,0.06317591]
[1672927237635,45.41,13.108,13.1,0.06317591]
[1672927238060,10.0,13.107,13.1,0.06317591]
[1672927238271,45.41,13.108,13.1,0.06317591]
[1672927238904,10.0,13.107,13.1,0.06317591]
[1672927239530,45.41,13.108,13.1,0.06317591]
[1672927241214,10.0,13.111,13.1,0.06317591]
[1672927241215,45.6,13.11,13.1,0.06317591]
[1672927242163,10.0,13.111,13.1,0.06317591]
[1672927243011,45.35,13.112,13.1,0.06317591]
[1672927246790,55.7,13.114,13.101,50.0]
[1672927247006,55.7,13.114,13.103,0.06653264]
[1672927248475,45.7,13.114,13.103,0.06653264]
[1672927248680,45.6,13.115,13.103,0.06653264]
[1672927248896,45.7,13.117,13.104,45.7]
[1672927249106,45.7,13.117,13.106,0.06779689]
[1672927250473,45.34,13.119,13.106,45.62779689]
[1672927250681,45.34,13.119,13.108,0.06533619]
[1672927251309,45.19118402,13.119,13.108,0.06533619]
[1672927251521,55.34,13.121,13.108,45.76533619]
[1672927251836,45.34,13.121,13.109,10.0]
[1672927252567,45.7787,13.124,13.112,45.26]
[1672927252775,45.7787,13.124,13.113,10.06270464]
[1672927253407,45.34,13.125,13.113,10.06270464]
[1672927253832,10.0,13.124,13.113,10.06270464]
[1672927254142,10.0,13.122,13.113,10.06270464]
[1672927255515,45.35,13.121,13.113,0.06270464]
[1672927255725,10.0,13.122,13.113,0.06270464]
[1672927255726,45.41,13.119,13.113,0.06270464]
[1672927255937,55.35,13.118,13.113,0.06270464]
[1672927256455,45.35,13.118,13.113,0.06270464]
[1672927256983,45.7,13.119,13.113,0.06270464]
[1672927257194,45.6,13.123,13.113,0.06270464]
[1672927257510,45.9669,13.124,13.113,0.06270464]
[1672927257823,45.9669,13.124,13.113,10.06270464]
[1672927258239,10.0,13.124,13.113,10.06270464]
[1672927259077,55.35,13.125,13.113,10.06270464]
[1672927259610,45.35,13.125,13.113,10.06270464]
[1672927263188,10.0,13.124,13.113,10.06270464]
[1672927264025,45.35,13.125,13.113,10.06270464]
[1672927264344,45.34,13.127,13.114,45.7]
[1672927264545,45.34,13.127,13.116,0.06242606]
[1672927265394,45.41,13.129,13.116,45.62242606]
[1672927265603,45.41,13.129,13.117,10.0]
[1672927267078,88.2856,13.131,13.118,45.7]
[1672927267391,88.14340408,13.131,13.12,0.0601116]
[1672927273171,45.7,13.134,13.121,45.26]
[1672927273383,45.35,13.135,13.123,0.0669276]
[1672927273586,45.35,13.135,13.124,0.06164127]
[1672927273797,10.0,13.134,13.124,0.06164127]
[1672927274331,45.35,13.135,13.124,0.06164127]
[1672927274850,10.0,13.133,13.124,0.06164127]
[1672927275062,45.41,13.129,13.124,0.06164127]
[1672927276218,45.7,13.13,13.124,0.06164127]
[1672927276630,45.34,13.132,13.124,0.06164127]
[1672927277055,45.6,13.134,13.124,0.06164127]
[1672927277477,45.34,13.136,13.124,0.06164127]
[1672927277794,45.34,13.136,13.124,10.06164127]
[1672927281152,10.0,13.135,13.124,10.06164127]
[1672927282201,45.34,13.136,13.124,10.06164127]
[1672927283256,42.7505,13.144,13.125,45.7]
[1672927283257,285.41,13.138,13.125,45.7]
[1672927283570,10.0,13.137,13.127,0.07040083]
[1672927285986,45.35,13.136,13.127,0.07040083]
[1672927286198,10.0,13.135,13.127,0.07040083]
[1672927288510,45.35,13.136,13.127,0.07040083]
[1672927288718,240.0,13.138,13.136,0.09541038]
[1672927289035,10.0,13.137,13.136,0.09541038]
[1672927289245,10.0,13.137,13.136,0.01694044]
[1672927289452,55.6,13.137,13.136,0.01694044]
[1672927291023,45.6,13.137,13.136,0.01694044]
[1672927292505,10.0,13.136,13.132,0.06099728]
[1672927292711,45.34,13.134,13.132,0.06099728]
[1672927292926,10.0,13.133,13.128,0.06071246]
[1672927293553,55.7,13.137,13.128,0.06071246]
[1672927293769,45.7,13.137,13.128,0.06071246]
[1672927294816,240.0,13.138,13.128,0.06071246]
[1672927294817,240.0,13.138,13.129,45.26]
[1672927295025,240.0,13.138,13.13,10.0]
[1672927296390,10.0,13.137,13.13,10.0]
[1672927296601,10.0,13.137,13.128,10.06071246]
[1672927302592,285.7,13.138,13.128,10.06071246]
[1672927302791,240.0,13.138,13.128,10.06071246]
[1672927305216,240.0,13.138,13.128,0.06071246]
[1672927305421,10.0,13.137,13.128,0.06071246]
[1672927305628,10.0,13.137,13.128,10.06071246]
[1672927306371,10.0,13.137,13.128,0.06071246]
[1672927306586,55.6,13.137,13.128,0.06071246]
[1672927306788,45.7,13.13,13.128,0.06071246]
[1672927307104,45.7,13.129,13.115,45.56]
[1672927307310,55.7,13.129,13.115,45.56]
[1672927307521,55.7,13.129,13.116,10.0]
[1672927307727,10.0,13.128,13.116,10.0]
[1672927307945,0.06,13.127,13.117,0.0633513]
[1672927311722,45.7,13.124,13.117,0.0633513]
[1672927311941,45.7,13.121,13.117,5.13e-05]
[1672927312362,10.0,13.12,13.117,5.13e-05]
[1672927312571,10.0,13.12,13.109,10.0]
[1672927312780,10.0,13.12,13.108,45.56]
[1672927312991,0.06269701,13.119,13.109,10.06989829]
[1672927313407,0.06269701,13.119,13.109,0.06989829]
[1672927313830,10.0,13.118,13.109,0.06989829]
[1672927314039,45.7,13.116,13.109,0.06989829]
[1672927314251,55.7,13.116,13.109,0.06989829]
[1672927314461,10.0,13.115,13.109,0.06989829]
[1672927317301,45.35,13.112,13.109,0.06989829]
[1672927317505,45.41,13.11,13.106,0.06970837]
[1672927317713,45.7,13.108,13.103,0.06806135]
[1672927317926,45.7,13.108,13.101,0.06026798]
[1672927318240,45.7,13.108,13.095,45.7]
[1672927318241,10.0,13.107,13.1,0.06425625]
[1672927318451,10.0,13.107,13.099,0.06718464]
[1672927318663,55.35,13.107,13.099,0.06718464]
[1672927320982,45.6,13.105,13.099,0.06718464]
[1672927321194,10.0,13.104,13.099,0.06718464]
[1672927321919,45.34,13.103,13.099,0.06718464]
[1672927322238,10.0,13.104,13.09,50.0]
[1672927322239,45.7,13.1,13.09,50.0]
[1672927322450,10.0,13.099,13.09,50.0]
[1672927322864,10.0,13.099,13.091,10.0]
[1672927323710,10.0,13.099,13.09,0.06375704]
[1672927324128,10.0,13.099,13.09,50.06375704]
[1672927325078,10.0,13.099,13.091,10.0]
[1672927326337,45.76511079,13.1,13.091,10.0]
[1672927327073,0.06511079,13.1,13.091,10.0]
[1672927327283,10.06511079,13.1,13.091,10.0]
[1672927327809,55.66511079,13.1,13.091,10.0]
[1672927328019,55.66511079,13.1,13.09,50.06375704]
[1672927328749,0.06511079,13.1,13.091,10.0]
[1672927329380,0.06511079,13.1,13.092,45.7]
[1672927329587,0.06511079,13.1,13.091,10.0]
[1672927329804,0.06511079,13.1,13.093,10.0]
[1672927332538,0.06511079,13.1,13.094,45.7]
[1672927332754,0.06511079,13.1,13.095,10.0]
[1672927333482,45.41,13.111,13.098,45.7]
[1672927333696,45.41,13.118,13.105,45.7]
[1672927334005,50.0,13.116,13.099,55.7]
[1672927334216,57.19,13.115,13.099,10.0]
[1672927334426,57.19,13.115,13.09,50.0]
[1672927334637,0.06474062,13.107,13.098,0.06724294]
[1672927334843,45.7,13.103,13.098,0.0666229]
[1672927335057,10.0,13.102,13.098,0.0666229]
[1672927335475,45.7,13.103,13.098,0.0666229]
[1672927335686,45.41,13.106,13.098,0.0666229]
[1672927335906,10.0,13.105,13.098,0.0666229]
[1672927337047,45.41,13.106,13.098,0.0666229]
[1672927337262,10.0,13.105,13.098,0.0666229]
[1672927339573,45.41,13.106,13.098,0.0666229]
[1672927339795,10.0,13.105,13.098,0.0666229]
[1672927341365,45.34,13.104,13.098,0.0666229]
[1672927341576,10.0,13.103,13.098,0.0666229]
[1672927342097,45.6,13.101,13.098,0.0666229]
[1672927342313,45.7,13.099,13.095,0.06091728]
[1672927342522,10.0,13.1,13.092,0.0675099]
[1672927342523,45.41,13.097,13.092,0.0675099]
[1672927342838,10.0,13.096,13.092,0.0675099]
[1672927343470,45.41,13.097,13.092,0.0675099]
[1672927343680,10.0,13.096,13.092,0.0675099]
[1672927344522,10.0,13.098,13.092,0.0675099]
[1672927345670,45.41,13.097,13.092,0.0675099]
[1672927345992,10.0,13.096,13.092,0.0675099]
[1672927346411,9.87898993,13.096,13.092,0.0675099]
[1672927349667,9.87898993,13.096,13.092,9.9e-06]
[1672927349883,45.35,13.094,13.092,9.9e-06]
[1672927350093,10.0,13.093,13.085,10.0]
[1672927351671,45.35,13.089,13.084,0.06991094]
[1672927351882,10.0,13.088,13.084,0.06991094]
[1672927352196,45.6,13.087,13.084,0.06991094]
[1672927352407,10.0,13.086,13.081,0.06566972]
[1672927352616,10.0,13.086,13.079,0.06756234]
[1672927354509,45.6,13.087,13.079,0.06756234]
[1672927354718,10.0,13.086,13.079,0.06756234]
[1672927356286,10.06991232,13.088,13.079,0.06756234]
[1672927357557,0.06991232,13.088,13.079,0.06756234]
[1672927358083,10.06991232,13.088,13.079,0.06756234]
[1672927358614,0.06991232,13.088,13.079,0.06756234]
[1672927358816,0.06991232,13.088,13.082,45.56]
[1672927359027,0.06991232,13.088,13.083,10.0]
[1672927359448,0.06991232,13.088,13.083,55.7]
[1672927361345,1.232e-05,13.088,13.083,55.7]
[1672927361653,9.87898993,13.096,13.087,45.26]
[1672927361863,45.7,13.101,13.088,45.56]
[1672927362179,10.0,13.1,13.089,10.0]
[1672927362492,10.0,13.1,13.09,0.06091321]
[1672927362807,0.0602968,13.099,13.09,0.06091321]
[1672927364598,45.6602968,13.099,13.09,0.06091321]
[1672927365122,55.7,13.098,13.09,0.06091321]
[1672927374779,55.56440453,13.098,13.09,0.06091321]
[1672927381936,0.16008742,13.09,13.087,10.0]
[1672927382140,0.16008742,13.09,13.073,45.7]
[1672927382141,45.7,13.088,13.073,45.7]
[1672927382460,10.0,13.085,13.074,10.0]
[1672927382669,10.0,13.085,13.075,45.7]
[1672927382881,0.06369755,13.085,13.076,10.0]
[1672927383301,0.06369755,13.085,13.076,55.26]
[1672927387924,0.06369755,13.085,13.076,10.0]
[1672927388450,0.06369755,13.085,13.079,45.26]
[1672927388657,0.06369755,13.085,13.08,10.0]
[1672927390546,0.06369755,13.085,13.08,55.7]
[1672927390754,0.16008742,13.09,13.08,55.7]
[1672927390968,0.16008742,13.09,13.082,45.56]
[1672927391177,0.16008742,13.09,13.083,10.0]
[1672927391920,0.16008742,13.09,13.084,45.7]
[1672927392125,0.16008742,13.09,13.085,10.0]
[1672927397802,10.0,13.099,13.085,10.0]
[1672927397803,10.0,13.099,13.088,45.7]
[1672927398119,55.34,13.101,13.089,10.0]
[1672927398739,55.34,13.101,13.09,0.06977351]
[1672927400637,45.34,13.101,13.09,0.06977351]
[1672927401586,45.7,13.099,13.09,0.06977351]
[1672927401793,10.0,13.098,13.09,0.06977351]
[1672927402840,45.7,13.099,13.09,0.06977351]
[1672927403471,45.6,13.1,13.09,0.06977351]
[1672927403687,45.34,13.102,13.09,0.06977351]
[1672927404212,55.6,13.104,13.091,45.26]
[1672927404525,55.6,13.104,13.093,45.76056756]
[1672927404737,55.6,13.104,13.093,0.06056756]
[1672927406316,45.6,13.104,13.093,0.06056756]
[1672927406726,45.35,13.107,13.094,45.7]
[1672927406941,45.35,13.107,13.096,0.06211246]
[1672927407152,45.6,13.109,13.096,45.76211246]
[1672927407356,10.0,13.108,13.098,0.07049362]
[1672927407568,55.35,13.112,13.099,45.26]
[1672927407778,55.35,13.112,13.101,0.06734972]
[1672927407995,41.7422,13.113,13.103,45.26]
[1672927408201,45.34,13.116,13.103,45.26]
[1672927408413,45.34,13.116,13.105,0.0664555]
[1672927409573,10.0,13.115,13.105,0.0664555]
[1672927410310,45.7,13.113,13.105,0.0664555]
[1672927410726,45.7,13.111,13.105,0.0664555]
[1672927410931,45.7,13.11,13.105,0.0664555]
[1672927411144,45.6,13.107,13.105,0.00275795]
[1672927411357,10.0,13.106,13.097,10.0]
[1672927411568,45.6,13.105,13.097,10.0]
[1672927411779,10.0,13.104,13.097,10.0]
[1672927412308,45.66361989,13.105,13.097,10.0]
[1672927414520,10.0,13.104,13.096,0.06857289]
[1672927415457,45.66361989,13.105,13.096,0.06857289]
[1672927415661,10.0,13.104,13.096,0.06857289]
[1672927416090,45.66361989,13.105,13.096,0.06857289]
[1672927416297,10.0,13.104,13.096,0.06857289]
[1672927417359,45.66361989,13.105,13.096,0.06857289]
[1672927417572,0.06361989,13.105,13.096,0.06857289]
[1672927417776,0.06361989,13.105,13.096,45.76857289]
[1672927417985,0.06361989,13.105,13.097,10.0]
[1672927419356,0.06361989,13.105,13.098,45.56]
[1672927419573,0.06361989,13.105,13.099,10.0]
[1672927420722,0.06361989,13.105,13.1,45.7]
[1672927420932,1.989e-05,13.105,13.101,10.0]
[1672927427136,1.989e-05,13.105,13.102,45.56]
[1672927427450,10.0,13.113,13.103,10.0]
[1672927427770,45.41,13.117,13.104,45.7]
[1672927427973,10.0,13.116,13.106,0.06678889]
[1672927430807,45.41,13.117,13.106,0.06678889]
[1672927431335,10.0,13.116,13.106,0.06678889]
[1672927433121,45.41,13.117,13.106,0.06678889]
[1672927433331,10.0,13.118,13.107,45.7]
[1672927433534,10.0,13.119,13.108,10.0]
[1672927433749,52.9563,13.12,13.109,45.33071251]
[1672927433961,10.0,13.12,13.11,10.0]
[1672927434799,89.2211,13.124,13.111,45.7]
[1672927435121,45.34,13.125,13.114,45.56]
[1672927435331,10.0,13.124,13.115,10.0695008]
[1672927435855,9.82632083,13.124,13.115,10.0695008]
[1672927436067,45.34,13.123,13.115,10.0695008]
[1672927436381,10.0,13.122,13.115,10.0695008]
[1672927436591,10.0,13.122,13.115,0.0695008]
[1672927436795,45.41,13.121,13.115,0.0695008]
[1672927437006,45.6,13.117,13.115,0.0695008]
[1672927437226,45.6,13.117,13.111,0.06188354]
[1672927437429,10.0,13.116,13.109,0.06566057]
[1672927439635,45.6,13.117,13.109,0.06566057]
[1672927443417,10.0,13.116,13.109,0.06566057]
[1672927446261,45.6,13.117,13.109,0.06566057]
[1672927447204,10.0,13.116,13.109,0.06566057]
[1672927449519,45.6,13.117,13.109,0.06566057]
[1672927450364,45.7,13.119,13.109,0.06566057]
[1672927450570,10.0,13.118,13.109,0.06566057]
[1672927454043,45.7,13.119,13.109,0.06566057]
[1672927454359,10.0,13.118,13.109,0.06566057]
[1672927456350,45.7,13.119,13.109,0.06566057]
[1672927456564,55.17632083,13.124,13.111,45.56]
[1672927456771,55.17632083,13.124,13.113,0.07020244]
[1672927457295,45.35,13.124,13.113,0.07020244]
[1672927460652,43.2229,13.126,13.114,45.7]
[1672927460868,43.2229,13.126,13.115,10.0]
[1672927461074,43.2229,13.126,13.116,0.06823861]
[1672927461496,45.6,13.129,13.116,45.32823861]
[1672927461708,10.0,13.128,13.118,0.06881669]
[1672927462128,45.6,13.129,13.118,0.06881669]
[1672927464125,10.0,13.128,13.118,0.06881669]
[1672927464335,25.04,13.128,13.118,0.06881669]
[1672927465490,15.04,13.128,13.118,0.06881669]
[1672927470856,15.1,13.135,13.123,15.18]
[1672927471057,10.0,13.134,13.128,0.13989119]
[1672927471474,15.1,13.135,13.128,0.13989119]
[1672927473373,10.0,13.136,13.128,0.13989119]
[1672927474839,70.7804,13.137,13.128,0.13989119]
[1672927475686,15.13,13.133,13.128,0.13989119]
[1672927475998,15.05643188,13.133,13.128,0.13989119]
[1672927476426,15.18,13.131,13.128,0.13989119]
[1672927476630,15.15,13.131,13.128,0.13989119]
[1672927482722,15.15,13.131,13.128,9.119e-05]
[1672927482925,15.18,13.129,13.128,9.119e-05]
[1672927483975,15.07,13.13,13.128,9.119e-05]
[1672927485558,15.18,13.129,13.128,9.119e-05]
[1672927487131,25.18,13.129,13.117,10.0]
[1672927487341,15.07,13.124,13.112,57.272]
[1672927487547,10.0,13.123,13.112,67.272]
[1672927487972,15.07,13.124,13.112,67.272]
[1672927488179,0.0616518,13.123,13.114,0.06708364]
[1672927488598,10.0616518,13.123,13.114,0.06708364]
[1672927488808,0.0616518,13.123,13.114,0.06708364]
[1672927507109,0.02220889,13.114,13.112,25.09]
[1672927508367,0.02220889,13.114,13.112,15.09]
[1672927512574,0.02220889,13.114,13.108,0.06415105]
[1672927519403,0.02220889,13.114,13.108,15.24415105]
[1672927519612,0.02220889,13.114,13.109,10.0]
[1672927520558,0.06932501,13.118,13.114,0.13274609]
[1672927526544,15.1,13.123,13.114,0.13274609]
[1672927526545,15.1,13.123,13.115,10.0]
[1672927526862,15.04,13.124,13.115,10.0]
[1672927527596,15.11066864,13.124,13.115,10.06789811]
[1672927530223,7.63066864,13.124,13.115,10.06789811]
[1672927530640,0.07066864,13.124,13.117,7.57]
[1672927530850,0.07066864,13.124,13.118,10.0]
[1672927535693,7.59,13.128,13.119,7.59]
[1672927536005,7.59,13.128,13.12,10.0]
[1672927537584,7.59,13.13,13.12,17.54]
[1672927541999,7.59,13.128,13.119,7.65599539]
[1672927542206,7.59,13.127,13.119,0.06599539]
[1672927545781,7.59,13.128,13.119,7.65599539]
[1672927548201,7.59,13.128,13.12,10.0]
[1672927550715,7.45218785,13.128,13.119,7.65599539]
[1672927551037,10.0,13.125,13.119,0.06599539]
[1672927551454,7.58,13.126,13.119,0.06599539]
[1672927554404,7.59,13.128,13.119,0.06599539]
[1672927554612,7.59,13.128,13.119,10.06599539]
[1672927556401,7.58,13.129,13.119,17.60599539]
[1672927557869,7.58,13.128,13.119,10.06599539]
[1672927565963,7.59,13.13,13.12,7.57]
[1672927566173,7.59,13.13,13.121,10.0]
[1672927574266,7.59,13.13,13.12,7.57]
[1672927576259,7.59,13.127,13.119,0.06599539]
[1672927576581,7.59,13.125,13.119,0.06599539]
[1672927579734,10.0,13.132,13.119,0.06599539]
[1672927579735,7.56,13.128,13.119,0.06599539]
[1672927582046,7.56,13.128,13.119,10.06599539]
[1672927582260,7.59,13.129,13.119,17.65599539]
[1672927583936,7.59,13.131,13.121,7.54]
[1672927584151,7.58,13.128,13.121,0.06263644]
[1672927584886,7.58,13.129,13.121,0.06263644]
[1672927585093,7.58,13.129,13.121,10.06263644]
[1672927587197,7.59,13.135,13.129,0.09112817]
[1672927592137,7.46448528,13.135,13.129,0.09112817]
[1672927596658,7.59,13.137,13.129,0.09112817]
[1672927597070,44.2095,13.142,13.131,7.59]
[1672927597280,7.59,13.141,13.132,10.0]
[1672927598759,7.56,13.139,13.132,10.0]
[1672927599602,17.59,13.137,13.13,10.06910649]
[1672927600019,10.0,13.136,13.13,10.06910649]
[1672927600757,17.59,13.137,13.13,10.06910649]
[1672927600964,7.59,13.137,13.13,10.06910649]
[1672927607276,7.40292294,13.137,13.13,10.06910649]
[1672927607901,7.56,13.139,13.13,10.06910649]
[1672927608319,7.58,13.142,13.132,7.54]
[1672927608532,138.49199365,13.138,13.134,7.59]
[1672927609274,138.49199365,13.138,13.135,10.0]
[1672927612111,138.49199365,13.138,13.135,9.81851662]
[1672927613268,138.49199365,13.138,13.135,17.35851662]
[1672927613471,105.05259365,13.138,13.137,7.59]
[1672927613682,105.05259365,13.138,13.136,7.57]
[1672927613995,105.05259365,13.138,13.137,10.0]
[1672927614734,84.87259365,13.138,13.137,10.0]
[1672927614945,64.64739365,13.138,13.137,10.0]
[1672927615683,58.51029365,13.138,13.137,10.0]
[1672927615893,47.34639365,13.138,13.137,10.0]
[1672927616527,27.34639365,13.138,13.137,10.0]
[1672927619991,2.81419365,13.138,13.137,10.0]
[1672927620309,0.00419365,13.138,13.137,10.0]
[1672927620517,0.00419365,13.138,13.137,67.59]
[1672927620724,52.886,13.152,13.138,10.0]
[1672927620934,52.886,13.152,13.142,7.59]
[1672927621252,45.326,13.152,13.144,7.57]
[1672927621458,45.326,13.152,13.145,10.0]
[1672927622196,45.326,13.152,13.146,7.59]
[1672927622617,45.326,13.152,13.147,10.0]
[1672927622828,7.59,13.156,13.147,10.0]
[1672927623142,7.59,13.156,13.147,10.06116871]
[1672927627030,53.3725,13.158,13.148,7.54]
[1672927627871,7.59,13.156,13.147,17.65116871]
[1672927630493,15.25,13.157,13.147,10.06116871]
[1672927633125,15.25,13.165,13.153,15.11]
[1672927633338,15.15,13.163,13.154,10.06016861]
[1672927633540,15.15,13.163,13.154,10.07102604]
[1672927635021,14.98818701,13.163,13.154,10.07102604]
[1672927636907,10.0,13.17,13.154,25.32102604]
[1672927637113,10.0,13.17,13.157,0.06505158]
[1672927637325,15.25,13.166,13.157,0.06505158]
[1672927637533,15.25,13.164,13.157,0.06505158]
[1672927639218,15.25,13.161,13.157,0.06505158]
[1672927639432,15.25,13.163,13.157,0.06505158]
[1672927640265,15.25,13.16,13.157,5.158e-05]
[1672927640477,15.25,13.158,13.145,25.25]
[1672927640798,15.25,13.155,13.145,10.0]
[1672927641427,15.25,13.155,13.146,10.06387104]
[1672927643532,15.25,13.153,13.146,10.06387104]
[1672927645727,15.25,13.155,13.146,10.06387104]
[1672927646048,61.27741364,13.156,13.146,10.06387104]
[1672927652144,15.31761364,13.156,13.146,10.06387104]
[1672927658553,10.0,13.154,13.146,0.06387104]
[1672927658969,15.25,13.155,13.146,0.06387104]
[1672927660861,10.0,13.154,13.146,0.06387104]
[1672927661278,10.0,13.152,13.146,0.06387104]
[1672927661911,15.25,13.151,13.146,0.06387104]
[1672927662324,10.0,13.15,13.146,0.06387104]
[1672927664218,15.25,13.151,13.146,0.06387104]
[1672927664638,10.0,13.15,13.146,0.06387104]
[1672927666217,15.25,13.148,13.146,7.104e-05]
[1672927666534,10.0,13.15,13.104,2120.39673264]
[1672927666535,25.25,13.147,13.135,25.25]
[1672927666949,10.0,13.146,13.135,25.25]
[1672927667160,10.0,13.146,13.136,0.07033659]
[1672927667371,0.06837632,13.145,13.136,0.07033659]
[1672927671048,0.06837632,13.145,13.14,15.25]
[1672927671265,0.06837632,13.145,13.142,15.25]
[1672927671478,0.06262417,13.148,13.142,15.25]
[1672927671683,0.06129146,13.15,13.143,10.0]
[1672927676516,0.06129146,13.15,13.145,15.21]
[1672927676723,0.06129146,13.15,13.146,10.0]
[1672927678830,0.06129146,13.15,13.148,15.12]
[1672927679040,0.06985587,13.154,13.15,0.13642609]
[1672927679247,10.06309753,13.157,13.15,0.13642609]
[1672927682401,10.0,13.155,13.15,0.13642609]
[1672927683452,15.25,13.156,13.15,0.13642609]
[1672927684081,15.06072705,13.156,13.15,0.13642609]
[1672927698276,0.06309753,13.157,13.15,0.13642609]
[1672927707309,15.25,13.154,13.15,0.13642609]
[1672927707520,25.25,13.153,13.147,0.06114764]
[1672927707837,10.0,13.152,13.147,0.06114764]
[1672927711624,15.25,13.153,13.147,0.06114764]
[1672927712465,15.25,13.153,13.148,10.0]
[1672927713200,15.25,13.156,13.148,10.0]
[1672927718037,7.56,13.156,13.148,10.0]
[1672927724020,7.56,13.156,13.148,9.90928184]
[1672927726541,7.6,13.156,13.148,9.90928184]
[1672927727383,7.6,13.158,13.148,17.52928184]
[1672927727593,7.6,13.158,13.148,17.59626064]
[1672927728436,7.62,13.163,13.153,7.62]
[1672927728645,7.62,13.163,13.154,10.0]
[1672927734306,7.56,13.164,13.154,17.58]
[1672927734522,7.56,13.164,13.154,17.64217135]
[1672927734732,7.6,13.166,13.156,7.62]
[1672927734945,7.6,13.166,13.156,7.68409146]
[1672927735156,7.6,13.166,13.157,10.0]
[1672927735367,7.59,13.168,13.159,10.0]
[1672927735577,7.59,13.168,13.159,10.06094761]
[1672927735787,7.6,13.166,13.159,10.06094761]
[1672927735998,7.59,13.164,13.159,10.06094761]
[1672927736210,7.59,13.164,13.159,0.06094761]
[1672927741149,7.62,13.168,13.159,10.06094761]
[1672927741987,7.6,13.166,13.159,0.06094761]
[1672927742834,7.39869375,13.166,13.159,0.06094761]
[1672927744822,7.59,13.164,13.159,0.06094761]
[1672927746831,7.56,13.166,13.159,0.06094761]
[1672927748825,7.6,13.164,13.159,0.06094761]
[1672927750189,7.62,13.168,13.159,0.06094761]
[1672927750509,7.62,13.168,13.159,10.06094761]